[Event "*** Biggest EVER Titled Tuesday"]
[Site "Chess.com"]
[Date "2018.04.17"]
[Round "2"]
[White "Bigfish1995"]
[Black "Tash_Boy"]
[Result "1/2-1/2"]
[WhiteElo "2775"]
[BlackElo "2537"]
[TimeControl "180+2"]
[EndTime "13:25:37 PDT"]
[Termination "Game drawn by agreement"]

1. e4 {[%clk 0:03:01.9]} 1... e5 {[%clk 0:03:00.5]} 2. Nf3 {[%clk 0:03:01.8]}
2... Nc6 {[%clk 0:03:01.9]} 3. Bc4 {[%clk 0:03:02.7]} 3... Bc5 {[%clk
0:03:01.6]} 4. c3 {[%clk 0:03:03.4]} 4... Qf6 {[%clk 0:03:02.1]} 5. b4 {[%clk
0:02:53.9]} 5... Bb6 {[%clk 0:03:02.4]} 6. a4 {[%clk 0:02:54.8]} 6... a6 {[%clk
0:03:02.8]} 7. d3 {[%clk 0:02:48.7]} 7... h6 {[%clk 0:03:03]} 8. Nbd2 {[%clk
0:02:05.8]} 8... Nge7 {[%clk 0:03:00.5]} 9. Bb3 {[%clk 0:02:03.5]} 9... d6
{[%clk 0:02:57.9]} 10. Nc4 {[%clk 0:02:04]} 10... Ba7 {[%clk 0:02:48.9]} 11. b5
{[%clk 0:02:05]} 11... Nd8 {[%clk 0:02:49.2]} 12. b6 {[%clk 0:02:02.7]} 12...
Bxb6 {[%clk 0:02:49.5]} 13. Nxb6 {[%clk 0:02:03.7]} 13... cxb6 {[%clk
0:02:51.4]} 14. Be3 {[%clk 0:02:04.9]} 14... Ne6 {[%clk 0:02:49]} 15. Bxe6
{[%clk 0:02:00.5]} 15... Bxe6 {[%clk 0:02:48.6]} 16. c4 {[%clk 0:02:00.1]} 16...
O-O {[%clk 0:02:44.2]} 17. Bxb6 {[%clk 0:02:00]} 17... Ng6 {[%clk 0:02:42.3]}
18. Be3 {[%clk 0:01:42.4]} 18... Bd7 {[%clk 0:02:42.9]} 19. a5 {[%clk
0:01:41.3]} 19... Qe7 {[%clk 0:02:40.5]} 20. O-O {[%clk 0:01:39.8]} 20... f5
{[%clk 0:02:39.5]} 21. exf5 {[%clk 0:01:39.4]} 21... Rxf5 {[%clk 0:02:39.4]} 22.
Nd2 {[%clk 0:01:39.1]} 22... Raf8 {[%clk 0:02:35.3]} 23. Ne4 {[%clk 0:01:36.3]}
23... Bc6 {[%clk 0:02:34.8]} 24. f3 {[%clk 0:01:36.5]} 24... Qe6 {[%clk
0:02:22.1]} 25. Qb3 {[%clk 0:01:32.1]} 25... Nh4 {[%clk 0:02:14.5]} 26. Rf2
{[%clk 0:01:24.9]} 26... Kh7 {[%clk 0:02:01.8]} 27. Kh1 {[%clk 0:01:11.6]} 27...
Qg6 {[%clk 0:01:59.7]} 28. Raf1 {[%clk 0:01:06.2]} 28... R5f7 {[%clk 0:01:46.1]}
29. Qa3 {[%clk 0:00:58.2]} 29... Nf5 {[%clk 0:01:46.3]} 30. Bb6 {[%clk
0:00:55.9]} 30... Rd7 {[%clk 0:01:37.8]} 31. Kg1 {[%clk 0:00:46.5]} 31... Nh4
{[%clk 0:01:32.6]} 32. Kh1 {[%clk 0:00:45]} 32... Nf5 {[%clk 0:01:32.8]} 33. Re1
{[%clk 0:00:39.9]} 33... h5 {[%clk 0:01:23.1]} 34. Qc1 {[%clk 0:00:38.9]} 34...
h4 {[%clk 0:01:22]} 35. Qg5 {[%clk 0:00:39.6]} 35... Qxg5 {[%clk 0:01:20.5]} 36.
Nxg5+ {[%clk 0:00:40.4]} 36... Kg6 {[%clk 0:01:21.9]} 37. Ne4 {[%clk 0:00:41.3]}
37... Kh5 {[%clk 0:01:13.9]} 38. Kg1 {[%clk 0:00:40.6]} 38... g5 {[%clk
0:01:13.3]} 39. g4+ {[%clk 0:00:36.4]} 39... hxg3 {[%clk 0:01:11.4]} 40. hxg3
{[%clk 0:00:37.6]} 40... Kg6 {[%clk 0:01:11.5]} 41. Ref1 {[%clk 0:00:18.5]}
41... Rh8 {[%clk 0:01:01.2]} 42. Rg2 {[%clk 0:00:18.2]} 42... d5 {[%clk
0:00:52.2]} 43. cxd5 {[%clk 0:00:17.2]} 43... Rxd5 {[%clk 0:00:54.1]} 44. Rd1
{[%clk 0:00:16.6]} 44... Rh3 {[%clk 0:00:47.9]} 45. Rh2 {[%clk 0:00:17.1]} 45...
Rxh2 {[%clk 0:00:43.8]} 46. Kxh2 {[%clk 0:00:19]} 46... Rb5 {[%clk 0:00:44.7]}
47. g4 {[%clk 0:00:20.3]} 47... Rb2+ {[%clk 0:00:43.3]} 48. Kh3 {[%clk
0:00:19.2]} 48... Nh4 {[%clk 0:00:43.2]} 49. Rf1 {[%clk 0:00:19.6]} 49... Bb5
{[%clk 0:00:42.3]} 50. Nxg5 {[%clk 0:00:20]} 50... Ng2 {[%clk 0:00:19.1]} 51.
Ne6 {[%clk 0:00:17]} 51... Bxd3 {[%clk 0:00:19.1]} 52. Rf2 {[%clk 0:00:15.1]}
52... Rxf2 {[%clk 0:00:16.5]} 53. Bxf2 {[%clk 0:00:15.9]} 53... Nf4+ {[%clk
0:00:16.1]} 54. Nxf4+ {[%clk 0:00:16.7]} 54... exf4 {[%clk 0:00:18]} 55. Bb6
{[%clk 0:00:17.7]} 55... Kg5 {[%clk 0:00:17.5]} 56. Bd8+ {[%clk 0:00:17.9]}
56... Kg6 {[%clk 0:00:17.5]} 57. Kg2 {[%clk 0:00:19.4]} 57... Be2 {[%clk
0:00:18.1]} 58. Kf2 {[%clk 0:00:20.2]} 58... Bc4 {[%clk 0:00:18.2]} 59. Ke1
{[%clk 0:00:19.6]} 59... Bd5 {[%clk 0:00:17.7]} 60. Kf2 {[%clk 0:00:20.4]} 60...
Bc4 {[%clk 0:00:18.4]} 61. Bc7 {[%clk 0:00:21.3]} 61... Kg5 {[%clk 0:00:18.5]}
62. Kg2 {[%clk 0:00:21.9]} 62... Bd3 {[%clk 0:00:19.1]} 63. Bd8+ {[%clk
0:00:22.6]} 63... Kg6 {[%clk 0:00:19.5]} 64. Kf2 {[%clk 0:00:17.6]} 64... Bc4
{[%clk 0:00:19.8]} 65. Be7 {[%clk 0:00:16.8]} 65... Bb5 {[%clk 0:00:20]} 66. Bd6
{[%clk 0:00:17.6]} 66... Kg5 {[%clk 0:00:21]} 67. Bc7 {[%clk 0:00:18.3]} 67...
Bc4 {[%clk 0:00:21.7]} 68. Bd6 {[%clk 0:00:12.6]} 68... Bd5 {[%clk 0:00:21.5]}
69. Be7+ {[%clk 0:00:13.2]} 69... Kg6 {[%clk 0:00:21.9]} 70. Kg2 {[%clk
0:00:14.5]} 70... Bc6 {[%clk 0:00:22.2]} 71. Ba3 {[%clk 0:00:12.4]} 71... Bd5
{[%clk 0:00:22.8]} 72. Bc1 {[%clk 0:00:13.2]} 72... Kg5 {[%clk 0:00:23.9]} 73.
Kf2 {[%clk 0:00:14.3]} 73... Bc6 {[%clk 0:00:24.9]} 74. Bd2 {[%clk 0:00:15.4]}
74... Bd5 {[%clk 0:00:25.9]} 75. Bb4 {[%clk 0:00:16.2]} 75... Bc6 {[%clk
0:00:26.9]} 76. Be7+ {[%clk 0:00:17]} 76... Kg6 {[%clk 0:00:27.1]} 77. Kg2
{[%clk 0:00:18.1]} 77... Bd5 {[%clk 0:00:27.9]} 78. Bd6 {[%clk 0:00:18.2]} 78...
Kg5 {[%clk 0:00:28.2]} 79. Bc7 {[%clk 0:00:19.2]} 79... Bc6 {[%clk 0:00:28.9]}
1/2-1/2

[Event "*** Biggest EVER Titled Tuesday"]
[Site "Chess.com"]
[Date "2018.04.17"]
[Round "2"]
[White "robbykevlishvili"]
[Black "grzechu96"]
[Result "0-1"]
[WhiteElo "2428"]
[BlackElo "2454"]
[TimeControl "180+2"]
[EndTime "13:25:42 PDT"]
[Termination "grzechu96 won on time"]

1. e4 {[%clk 0:03:01.9]} 1... c5 {[%clk 0:02:59.3]} 2. Nf3 {[%clk 0:03:02.3]}
2... d6 {[%clk 0:02:59.4]} 3. d4 {[%clk 0:03:03.4]} 3... cxd4 {[%clk 0:03:01.3]}
4. Nxd4 {[%clk 0:03:04.9]} 4... Nf6 {[%clk 0:03:02.4]} 5. Nc3 {[%clk 0:03:06]}
5... a6 {[%clk 0:03:03]} 6. Bc4 {[%clk 0:03:00.8]} 6... e6 {[%clk 0:03:01.7]} 7.
Bb3 {[%clk 0:03:01.6]} 7... b5 {[%clk 0:02:50.5]} 8. f4 {[%clk 0:02:56]} 8...
Bb7 {[%clk 0:02:49.8]} 9. e5 {[%clk 0:02:50.2]} 9... dxe5 {[%clk 0:01:56.4]} 10.
fxe5 {[%clk 0:02:50.4]} 10... Nfd7 {[%clk 0:01:57.7]} 11. O-O {[%clk 0:02:46.1]}
11... Bc5 {[%clk 0:01:58.8]} 12. Be3 {[%clk 0:02:43.7]} 12... O-O {[%clk
0:01:20]} 13. Qh5 {[%clk 0:02:43.4]} 13... g6 {[%clk 0:01:21.3]} 14. Qh3 {[%clk
0:02:43]} 14... Nxe5 {[%clk 0:01:21.6]} 15. Rad1 {[%clk 0:02:43.7]} 15... Nbd7
{[%clk 0:01:21.6]} 16. Nxe6 {[%clk 0:01:55.3]} 16... Bxe3+ {[%clk 0:01:20.1]}
17. Qxe3 {[%clk 0:01:57.2]} 17... fxe6 {[%clk 0:01:21.1]} 18. Bxe6+ {[%clk
0:01:57.1]} 18... Kg7 {[%clk 0:01:14.3]} 19. Rxf8 {[%clk 0:01:41.7]} 19... Qxf8
{[%clk 0:00:50.6]} 20. Bxd7 {[%clk 0:01:41.1]} 20... Nc4 {[%clk 0:00:50.6]} 21.
Qd4+ {[%clk 0:01:34.6]} 21... Qf6 {[%clk 0:00:51.8]} 22. b3 {[%clk 0:01:27.7]}
22... Qxd4+ {[%clk 0:00:42.5]} 23. Rxd4 {[%clk 0:01:28.5]} 23... Ne5 {[%clk
0:00:43.9]} 24. Ne2 {[%clk 0:01:20.7]} 24... Rf8 {[%clk 0:00:11.7]} 25. Bh3
{[%clk 0:01:17.9]} 25... Rf7 {[%clk 0:00:12]} 26. a4 {[%clk 0:01:13.4]} 26...
Rc7 {[%clk 0:00:11.6]} 27. c3 {[%clk 0:01:12.6]} 27... bxa4 {[%clk 0:00:11.8]}
28. Rxa4 {[%clk 0:01:12.5]} 28... g5 {[%clk 0:00:12.5]} 29. Bf5 {[%clk
0:01:10.4]} 29... h6 {[%clk 0:00:13.4]} 30. Be4 {[%clk 0:01:10.3]} 30... Bxe4
{[%clk 0:00:13.4]} 31. Rxe4 {[%clk 0:01:11.3]} 31... Kf6 {[%clk 0:00:15]} 32.
Kf2 {[%clk 0:01:09.6]} 32... Nd3+ {[%clk 0:00:12.6]} 33. Ke3 {[%clk 0:01:10.3]}
33... Nc5 {[%clk 0:00:14]} 34. Rb4 {[%clk 0:01:08.2]} 34... Re7+ {[%clk
0:00:11.7]} 35. Kf3 {[%clk 0:01:07.6]} 35... g4+ {[%clk 0:00:12]} 36. Rxg4
{[%clk 0:01:02.3]} 36... Nxb3 {[%clk 0:00:13.4]} 37. Rf4+ {[%clk 0:00:59.7]}
37... Kg6 {[%clk 0:00:10.8]} 38. Kf2 {[%clk 0:00:37.3]} 38... Nc5 {[%clk
0:00:11.5]} 39. Rg4+ {[%clk 0:00:32.9]} 39... Kf6 {[%clk 0:00:12.2]} 40. Rc4
{[%clk 0:00:28.7]} 40... Nd3+ {[%clk 0:00:12.9]} 41. Kf1 {[%clk 0:00:26.9]}
41... Re6 {[%clk 0:00:12.8]} 42. g3 {[%clk 0:00:25.6]} 42... Rb6 {[%clk
0:00:13.6]} 43. Nd4 {[%clk 0:00:24.9]} 43... Rb1+ {[%clk 0:00:13.8]} 44. Kg2
{[%clk 0:00:24.5]} 44... Ne5 {[%clk 0:00:14.5]} 45. Ra4 {[%clk 0:00:21.9]} 45...
Rb2+ {[%clk 0:00:14]} 46. Kh3 {[%clk 0:00:22.2]} 46... Rb6 {[%clk 0:00:14.2]}
47. Ne2 {[%clk 0:00:23.7]} 47... Rc6 {[%clk 0:00:14.8]} 48. Ra5 {[%clk
0:00:24.2]} 48... Nc4 {[%clk 0:00:14.6]} 49. Rh5 {[%clk 0:00:24.6]} 49... Kg6
{[%clk 0:00:15.6]} 50. Nf4+ {[%clk 0:00:26.1]} 50... Kg7 {[%clk 0:00:16.9]} 51.
Rd5 {[%clk 0:00:26.5]} 51... Ne3 {[%clk 0:00:17.9]} 52. Rd7+ {[%clk 0:00:27]}
52... Kf6 {[%clk 0:00:19]} 53. Rd3 {[%clk 0:00:28.3]} 53... Nf5 {[%clk
0:00:19.2]} 54. Nd5+ {[%clk 0:00:29.4]} 54... Kg7 {[%clk 0:00:19]} 55. Rf3
{[%clk 0:00:29.4]} 55... Nd6 {[%clk 0:00:18.8]} 56. Ne7 {[%clk 0:00:29.8]} 56...
Rc5 {[%clk 0:00:15.7]} 57. Rd3 {[%clk 0:00:29.5]} 57... Ne4 {[%clk 0:00:16.7]}
58. Re3 {[%clk 0:00:28.4]} 58... Nxc3 {[%clk 0:00:16.4]} 59. Kh4 {[%clk
0:00:29.7]} 59... a5 {[%clk 0:00:16.8]} 60. g4 {[%clk 0:00:30]} 60... a4 {[%clk
0:00:17.5]} 61. Nf5+ {[%clk 0:00:30.9]} 61... Kf6 {[%clk 0:00:18.9]} 62. Nd6
{[%clk 0:00:25.6]} 62... Kg7 {[%clk 0:00:13.3]} 63. Re7+ {[%clk 0:00:22]} 63...
Kf8 {[%clk 0:00:13.5]} 64. Rf7+ {[%clk 0:00:22.8]} 64... Kg8 {[%clk 0:00:14.9]}
65. Ra7 {[%clk 0:00:24.1]} 65... Rd5 {[%clk 0:00:09]} 66. Nf5 {[%clk 0:00:24.5]}
66... Rd2 {[%clk 0:00:07.9]} 67. Kh5 {[%clk 0:00:25.7]} 67... Kf8 {[%clk
0:00:06.5]} 68. h4 {[%clk 0:00:25.3]} 68... Rb2 {[%clk 0:00:04]} 69. Kxh6 {[%clk
0:00:23]} 69... Rb4 {[%clk 0:00:04.8]} 70. g5 {[%clk 0:00:23.9]} 70... Rf4
{[%clk 0:00:05.7]} 71. Kg6 {[%clk 0:00:23.8]} 71... Nb5 {[%clk 0:00:04.7]} 72.
h5 {[%clk 0:00:24]} 72... Nxa7 {[%clk 0:00:05.6]} 73. h6 {[%clk 0:00:24.6]}
73... Rxf5 {[%clk 0:00:04]} 74. h7 {[%clk 0:00:19.2]} 74... Rxg5+ {[%clk
0:00:04.5]} 75. Kh6 {[%clk 0:00:20.3]} 75... Rh5+ {[%clk 0:00:05.8]} 76. Kxh5
{[%clk 0:00:19.3]} 76... Kg7 {[%clk 0:00:07]} 77. Kg5 {[%clk 0:00:19.8]} 77...
a3 {[%clk 0:00:08.3]} 0-1

[Event "*** Biggest EVER Titled Tuesday"]
[Site "Chess.com"]
[Date "2018.04.17"]
[Round "3"]
[White "Rish_97"]
[Black "oskariot"]
[Result "0-1"]
[WhiteElo "2277"]
[BlackElo "2387"]
[TimeControl "180+2"]
[EndTime "13:31:34 PDT"]
[Termination "oskariot won by resignation"]

1. c4 {[%clk 0:03:00.9]} 1... e5 {[%clk 0:02:59.2]} 2. Nc3 {[%clk 0:03:00.2]}
2... Nf6 {[%clk 0:03:00.2]} 3. g3 {[%clk 0:03:00.1]} 3... Bb4 {[%clk 0:03:01.6]}
4. Bg2 {[%clk 0:02:51.3]} 4... O-O {[%clk 0:03:02.9]} 5. e4 {[%clk 0:02:42.1]}
5... Bxc3 {[%clk 0:03:02.4]} 6. dxc3 {[%clk 0:02:41.5]} 6... a6 {[%clk
0:03:03.4]} 7. Ne2 {[%clk 0:02:41.4]} 7... b5 {[%clk 0:03:02]} 8. cxb5 {[%clk
0:02:38.1]} 8... axb5 {[%clk 0:03:03.9]} 9. Be3 {[%clk 0:02:27.6]} 9... Bb7
{[%clk 0:03:04.3]} 10. f3 {[%clk 0:02:28.2]} 10... d6 {[%clk 0:02:59.6]} 11. Qb3
{[%clk 0:02:17.8]} 11... Nbd7 {[%clk 0:02:56.7]} 12. O-O {[%clk 0:02:07.9]}
12... Qe7 {[%clk 0:02:45.1]} 13. a4 {[%clk 0:01:58.1]} 13... Nb6 {[%clk
0:02:09.4]} 14. Bxb6 {[%clk 0:01:50.3]} 14... cxb6 {[%clk 0:02:05.2]} 15. axb5
{[%clk 0:01:45.2]} 15... d5 {[%clk 0:02:05.7]} 16. Nc1 {[%clk 0:01:25.8]} 16...
Rxa1 {[%clk 0:02:00.2]} 0-1

[Event "*** Biggest EVER Titled Tuesday"]
[Site "Chess.com"]
[Date "2018.04.17"]
[Round "3"]
[White "talento10"]
[Black "hblanco"]
[Result "1-0"]
[WhiteElo "2356"]
[BlackElo "2342"]
[TimeControl "180+2"]
[EndTime "13:31:34 PDT"]
[Termination "talento10 won by resignation"]

1. e4 {[%clk 0:03:01.8]} 1... c5 {[%clk 0:03:00.2]} 2. Nf3 {[%clk 0:03:02.4]}
2... g6 {[%clk 0:03:01.3]} 3. h4 {[%clk 0:03:00.7]} 3... h5 {[%clk 0:03:01.2]}
4. d4 {[%clk 0:02:56.8]} 4... cxd4 {[%clk 0:03:02.1]} 5. Nxd4 {[%clk 0:02:58.7]}
5... Nc6 {[%clk 0:03:02.7]} 6. Nc3 {[%clk 0:02:56]} 6... Bg7 {[%clk 0:03:03.2]}
7. Be3 {[%clk 0:02:55.9]} 7... Nf6 {[%clk 0:03:03.4]} 8. f3 {[%clk 0:02:52.3]}
8... O-O {[%clk 0:02:27]} 9. Bc4 {[%clk 0:02:27.5]} 9... Qb6 {[%clk 0:02:15.9]}
10. Rb1 {[%clk 0:02:25.8]} 10... Nxe4 {[%clk 0:02:13.3]} 11. Nd5 {[%clk
0:02:23.9]} 11... Qa5+ {[%clk 0:02:01.9]} 12. b4 {[%clk 0:02:25.1]} 12... Qd8
{[%clk 0:01:58]} 13. fxe4 {[%clk 0:02:22.1]} 13... e5 {[%clk 0:01:36.1]} 14. Nf3
{[%clk 0:02:16.2]} 14... d6 {[%clk 0:01:27.4]} 15. Bg5 {[%clk 0:02:05.1]} 15...
Qd7 {[%clk 0:01:13]} 16. Nf6+ {[%clk 0:01:55.1]} 16... Bxf6 {[%clk 0:01:12.7]}
17. Bxf6 {[%clk 0:01:57]} 1-0

[Event "*** Biggest EVER Titled Tuesday"]
[Site "Chess.com"]
[Date "2018.04.17"]
[Round "3"]
[White "Illingworth"]
[Black "lupta_robin"]
[Result "1-0"]
[WhiteElo "2736"]
[BlackElo "2439"]
[TimeControl "180+2"]
[EndTime "13:32:00 PDT"]
[Termination "Illingworth won by resignation"]

1. Nf3 {[%clk 0:03:01.2]} 1... c5 {[%clk 0:03:00.3]} 2. c4 {[%clk 0:03:02]} 2...
Nc6 {[%clk 0:03:00.7]} 3. Nc3 {[%clk 0:03:03.3]} 3... e5 {[%clk 0:03:00]} 4. e3
{[%clk 0:03:04.6]} 4... Nf6 {[%clk 0:02:56.6]} 5. Be2 {[%clk 0:03:05.8]} 5... d5
{[%clk 0:02:44.7]} 6. d4 {[%clk 0:03:06.8]} 6... e4 {[%clk 0:02:36.1]} 7. Ne5
{[%clk 0:03:07]} 7... cxd4 {[%clk 0:02:25.4]} 8. exd4 {[%clk 0:03:07.2]} 8...
Bb4 {[%clk 0:02:25.8]} 9. O-O {[%clk 0:03:06.2]} 9... O-O {[%clk 0:02:18.8]} 10.
Bg5 {[%clk 0:03:06.7]} 10... Bxc3 {[%clk 0:02:07.3]} 11. bxc3 {[%clk 0:03:07.4]}
11... h6 {[%clk 0:02:02.5]} 12. Bh4 {[%clk 0:03:04]} 12... Be6 {[%clk
0:01:34.4]} 13. cxd5 {[%clk 0:03:00.5]} 13... Bxd5 {[%clk 0:01:35.2]} 14. Ng4
{[%clk 0:02:54]} 14... Be6 {[%clk 0:01:13.8]} 15. Nxf6+ {[%clk 0:02:48.6]} 15...
gxf6 {[%clk 0:01:14.7]} 16. Qd2 {[%clk 0:02:50]} 16... Kg7 {[%clk 0:01:14.4]}
17. f3 {[%clk 0:02:50.7]} 17... e3 {[%clk 0:01:13.7]} 18. Qxe3 {[%clk
0:02:51.2]} 18... Re8 {[%clk 0:01:09.4]} 19. Qf4 {[%clk 0:02:46.4]} 19... Na5
{[%clk 0:00:50.9]} 20. Rfe1 {[%clk 0:02:40.6]} 20... Bc4 {[%clk 0:00:40.9]} 21.
Bxc4 {[%clk 0:02:33.3]} 21... Rxe1+ {[%clk 0:00:41.4]} 22. Rxe1 {[%clk
0:02:35.2]} 22... Nxc4 {[%clk 0:00:42.7]} 23. Qg4+ {[%clk 0:02:35.3]} 23... Kf8
{[%clk 0:00:40.4]} 24. Qf5 {[%clk 0:02:34.2]} 24... Kg7 {[%clk 0:00:40.7]} 25.
Re4 {[%clk 0:02:34.5]} 1-0

[Event "*** Biggest EVER Titled Tuesday"]
[Site "Chess.com"]
[Date "2018.04.17"]
[Round "3"]
[White "Mikhail_Golubev"]
[Black "Blackmind96"]
[Result "1-0"]
[WhiteElo "2431"]
[BlackElo "2570"]
[TimeControl "180+2"]
[EndTime "13:32:23 PDT"]
[Termination "Mikhail_Golubev won by resignation"]

1. e4 {[%clk 0:03:01.9]} 1... e6 {[%clk 0:02:58.7]} 2. d4 {[%clk 0:03:01.2]}
2... d5 {[%clk 0:02:58.5]} 3. Nc3 {[%clk 0:03:01.7]} 3... Nf6 {[%clk 0:02:55.7]}
4. Bg5 {[%clk 0:03:00.8]} 4... Be7 {[%clk 0:02:50.6]} 5. exd5 {[%clk 0:02:59.5]}
5... exd5 {[%clk 0:02:41]} 6. Bd3 {[%clk 0:02:59.3]} 6... O-O {[%clk 0:02:41.1]}
7. Nge2 {[%clk 0:02:59.9]} 7... Bg4 {[%clk 0:02:40.6]} 8. f3 {[%clk 0:02:59.9]}
8... Bh5 {[%clk 0:02:38.7]} 9. Qd2 {[%clk 0:03:00.3]} 9... c6 {[%clk 0:02:33.8]}
10. O-O-O {[%clk 0:02:59.5]} 10... Nbd7 {[%clk 0:02:33.7]} 11. g4 {[%clk
0:02:51.8]} 11... Bg6 {[%clk 0:02:32.8]} 12. h4 {[%clk 0:02:48.1]} 12... b5
{[%clk 0:02:23.8]} 13. Nf4 {[%clk 0:02:34.2]} 13... Nb6 {[%clk 0:02:15.6]} 14.
Nxg6 {[%clk 0:02:25.1]} 14... hxg6 {[%clk 0:02:11.8]} 15. h5 {[%clk 0:02:21.3]}
15... gxh5 {[%clk 0:02:10.5]} 16. Bxf6 {[%clk 0:02:18.4]} 16... Bxf6 {[%clk
0:02:06.6]} 17. Rxh5 {[%clk 0:01:59.5]} 17... g6 {[%clk 0:02:04.5]} 18. Qh6
{[%clk 0:01:54.3]} 18... Re8 {[%clk 0:01:54]} 19. Bxg6 {[%clk 0:01:51.1]} 19...
fxg6 {[%clk 0:01:46.4]} 20. Qxg6+ {[%clk 0:01:51]} 20... Bg7 {[%clk 0:01:18.8]}
21. Qh7+ {[%clk 0:01:48.5]} 21... Kf7 {[%clk 0:01:17.2]} 22. Rf5+ {[%clk
0:01:48.5]} 22... Ke6 {[%clk 0:01:16.6]} 23. Qxg7 {[%clk 0:01:38.9]} 1-0

[Event "*** Biggest EVER Titled Tuesday"]
[Site "Chess.com"]
[Date "2018.04.17"]
[Round "3"]
[White "wadsy27"]
[Black "nochewycandy"]
[Result "0-1"]
[WhiteElo "2131"]
[BlackElo "2084"]
[TimeControl "180+2"]
[EndTime "13:32:27 PDT"]
[Termination "nochewycandy won by resignation"]

1. g3 {[%clk 0:03:00.7]} 1... g6 {[%clk 0:03:01.9]} 2. Bg2 {[%clk 0:03:01.4]}
2... Bg7 {[%clk 0:03:02.5]} 3. d4 {[%clk 0:03:02.9]} 3... Nf6 {[%clk 0:03:02.6]}
4. e4 {[%clk 0:03:03.8]} 4... O-O {[%clk 0:03:04.5]} 5. Ne2 {[%clk 0:03:04.6]}
5... d6 {[%clk 0:03:05.8]} 6. Nbc3 {[%clk 0:03:05.4]} 6... e5 {[%clk 0:03:07.3]}
7. h3 {[%clk 0:03:06.5]} 7... exd4 {[%clk 0:03:06.9]} 8. Nxd4 {[%clk 0:03:07.3]}
8... Nbd7 {[%clk 0:03:06.6]} 9. O-O {[%clk 0:03:05.7]} 9... c6 {[%clk
0:03:07.6]} 10. a4 {[%clk 0:03:05.6]} 10... a5 {[%clk 0:03:07.7]} 11. Be3 {[%clk
0:03:04.1]} 11... Re8 {[%clk 0:03:07.1]} 12. Re1 {[%clk 0:03:00.4]} 12... Nc5
{[%clk 0:03:07.8]} 13. Bg5 {[%clk 0:02:56]} 13... h6 {[%clk 0:03:08.3]} 14. Bf4
{[%clk 0:02:54.7]} 14... Nh5 {[%clk 0:03:05.9]} 15. Bc1 {[%clk 0:02:41.5]} 15...
Qf6 {[%clk 0:03:04]} 16. Nde2 {[%clk 0:02:35.6]} 16... Qe7 {[%clk 0:02:42]} 17.
Be3 {[%clk 0:02:05.7]} 17... Be6 {[%clk 0:02:34.4]} 18. g4 {[%clk 0:01:55.7]}
18... Nf6 {[%clk 0:02:35.1]} 19. Bxc5 {[%clk 0:01:52.8]} 19... dxc5 {[%clk
0:02:35.9]} 20. e5 {[%clk 0:01:52.5]} 20... Nd7 {[%clk 0:02:36.3]} 21. f4 {[%clk
0:01:51.6]} 21... g5 {[%clk 0:02:37]} 22. f5 {[%clk 0:01:51.5]} 22... Bc4 {[%clk
0:02:37]} 23. f6 {[%clk 0:01:47.4]} 23... Nxf6 {[%clk 0:02:35.7]} 24. exf6
{[%clk 0:01:47.2]} 24... Qe3+ {[%clk 0:02:35.8]} 25. Kh1 {[%clk 0:01:43.6]}
25... Bxf6 {[%clk 0:02:34.1]} 26. Ng1 {[%clk 0:01:37.5]} 26... Qg3 {[%clk
0:02:31.1]} 27. Rxe8+ {[%clk 0:01:31.4]} 27... Rxe8 {[%clk 0:02:31]} 28. Qf3
{[%clk 0:01:22.7]} 28... Qe5 {[%clk 0:02:23.7]} 29. Rd1 {[%clk 0:01:03.8]} 29...
Bd8 {[%clk 0:02:22.3]} 30. b3 {[%clk 0:00:57.4]} 30... Bc7 {[%clk 0:02:21.1]}
0-1

[Event "*** Biggest EVER Titled Tuesday"]
[Site "Chess.com"]
[Date "2018.04.17"]
[Round "3"]
[White "Caterpiller35"]
[Black "Mimsychess"]
[Result "0-1"]
[WhiteElo "2236"]
[BlackElo "2294"]
[TimeControl "180+2"]
[EndTime "13:32:43 PDT"]
[Termination "Mimsychess won by resignation"]

1. d4 {[%clk 0:03:01.9]} 1... Nf6 {[%clk 0:02:57.5]} 2. Bf4 {[%clk 0:03:02.2]}
2... g6 {[%clk 0:02:55.8]} 3. Nc3 {[%clk 0:03:02.3]} 3... d5 {[%clk 0:02:49.6]}
4. e3 {[%clk 0:03:02.8]} 4... c6 {[%clk 0:02:45.3]} 5. h4 {[%clk 0:03:03.2]}
5... Qb6 {[%clk 0:02:39.8]} 6. Rb1 {[%clk 0:03:01.8]} 6... h5 {[%clk 0:02:39.2]}
7. Nf3 {[%clk 0:03:01.6]} 7... Bg4 {[%clk 0:02:34.9]} 8. Be2 {[%clk 0:03:01.9]}
8... Bxf3 {[%clk 0:02:35.5]} 9. Bxf3 {[%clk 0:03:02.5]} 9... Bg7 {[%clk
0:02:36.5]} 10. O-O {[%clk 0:03:02]} 10... O-O {[%clk 0:02:34.8]} 11. b4 {[%clk
0:03:02]} 11... Nfd7 {[%clk 0:02:27.7]} 12. Bxd5 {[%clk 0:02:33.9]} 12... cxd5
{[%clk 0:02:21.1]} 13. Nxd5 {[%clk 0:02:34.5]} 13... Qd8 {[%clk 0:02:21.3]} 14.
Nc7 {[%clk 0:02:27.9]} 14... e5 {[%clk 0:02:22]} 15. dxe5 {[%clk 0:02:19.3]}
15... Qxc7 {[%clk 0:02:05.6]} 16. e6 {[%clk 0:02:20.2]} 16... Ne5 {[%clk
0:02:07.2]} 17. Qd5 {[%clk 0:02:15]} 17... fxe6 {[%clk 0:02:00.2]} 18. Qxe6+
{[%clk 0:02:15.1]} 18... Qf7 {[%clk 0:02:01.7]} 19. Qh3 {[%clk 0:02:12.6]} 19...
Nbd7 {[%clk 0:01:58.6]} 20. Rfd1 {[%clk 0:02:12.7]} 20... Rac8 {[%clk
0:01:55.7]} 21. Rd2 {[%clk 0:02:04.6]} 21... Qf5 {[%clk 0:01:43.5]} 22. Qg3
{[%clk 0:01:58.5]} 22... Qg4 {[%clk 0:01:38.7]} 23. Qxg4 {[%clk 0:01:46.5]}
23... hxg4 {[%clk 0:01:38.3]} 24. Rbd1 {[%clk 0:01:47.4]} 24... Nb6 {[%clk
0:01:34.1]} 25. Rd6 {[%clk 0:01:42.5]} 25... Rxc2 {[%clk 0:01:26.9]} 26. Bxe5
{[%clk 0:01:38.9]} 26... Bxe5 {[%clk 0:01:28.8]} 27. Rxg6+ {[%clk 0:01:40.1]}
27... Kh7 {[%clk 0:01:29.8]} 28. Rxg4 {[%clk 0:01:41.2]} 28... Rfxf2 {[%clk
0:01:29.7]} 29. a4 {[%clk 0:01:37.6]} 29... Nc4 {[%clk 0:01:26.3]} 30. Rd7+
{[%clk 0:01:37.1]} 30... Kh6 {[%clk 0:01:26.9]} 31. Rxb7 {[%clk 0:01:32.1]}
31... Nxe3 {[%clk 0:01:25.9]} 0-1